Cogmind - Beta 16.1 @@@ ROGUE MODE // 2026.02.01 @ 00:10:04 Player: JuustuToug Result: Destroyed by Enhanced Grunt with Neutron Cannon Performance ------------- Evolutions (3) 1500 Regions Visited (14) 2800 Robots Destroyed (169) 845 Value Destroyed (5571) 5571 Prototype IDs (240) 4800 Alien Tech Used (0) 0 Bonus (5808) 5808 TOTAL SCORE: 21324 Bonus ------- High Alert Combat Kills 542 Follower Combat Kills 384 Entered Garrisons 400 Used RIF Installer 1000 Aligned with FarCom 300 Met Data Miner 300 Used Data Conduit 3000 Friendly Fire -118 Cogmind --------- Core Integrity 0/700 Matter 184/300 Energy 131/265 System Corruption 3% Temperature Cool (0) Movement Core (900) Ox17 Location -7/Data Miner Parts ------- > --- POWER (1) -------- Improved Ion Engine > --- PROPULSION (4) --- (None) > --- UTILITY (6) ------ High-capacity Storage Unit Transmission Jammer Improved Hacking Suite > --- WEAPON (2) ------- Autogun Autogun > --- INVENTORY (20) --- Relay Coupler [NC] (44) Relay Coupler [Grunt] (39) High-powered Tractor Beam Heavy Ion Cannon YOLO Cannon Assault Rifle Proton Missile Launcher Heavy Missile Launcher Heavy Missile Launcher Remote Datajack Chainsword Peak State ------------ > --- POWER ------------ Improved Deuterium Engine > --- PROPULSION ------- Light Treads Armored Treads Advanced Treads Medium Treads > --- UTILITY ---------- Improved Heat Sink High-capacity Storage Unit Improved Signal Interpreter Transmission Jammer Improved Light Armor Plating Improved Hacking Suite > --- WEAPON ----------- YOLO Cannon > --- INVENTORY -------- Improved Ion Engine Light Treads Light Treads Medium Treads Improved Heat Sink Relay Coupler [NC] Relay Coupler [Grunt] High-powered Tractor Beam Assault Rifle Autogun Autogun Enhanced Autogun Advanced EMP Blaster Proton Missile Launcher Heavy Missile Launcher Heavy Missile Launcher Remote Datajack Chainsword [Rating: 59] Favorites ----------- Power Improved Deuterium Engine Engine Improved Deuterium Engine Power Core Fission Core Propulsion Armored Treads Treads Armored Treads Leg Aluminum Leg Utility Improved Heat Sink Device Improved Heat Sink Storage High-capacity Storage Unit Processor Improved Signal Interpreter Hackware Improved Hacking Suite Protection Improved Light Armor Plating Weapon Advanced Beam Cannon Energy Gun Improved Medium Laser Energy Cannon Advanced Beam Cannon Ballistic Gun Heavy Assault Rifle Launcher Advanced EMP Blaster Special Weapon Remote Datajack Impact Weapon Power Maul Slashing Weapon Chainsword Build | -11 -10 -10 -9 -9 -9 -8 -8 -8 -7 -7 -7 -7 -7 -7 ------- Run | Yrd Mat Min Mat Min Exi Min Mat Gar Fac Gar Fac Low Low Dat Slots Evolved 6 | . . . 2 . . . 2 . 2 . . . . . Power . | . . . . . . . . . . . . . . . Propulsion 2 | . . . 1 . . . 1 . . . . . . . Utility 4 | . . . 1 . . . 1 . 2 . . . . . Weapon . | . . . . . . . . . . . . . . . Parts Attached 106 | 6 11 3 16 1 4 . 10 10 7 9 14 6 2 7 Power 13 | 1 1 . 3 . . . . 3 . 1 2 . . 2 Engine 11 | 1 1 . 3 . . . . 2 . 1 2 . . 1 Core 2 | . . . . . . . . 1 . . . . . 1 Reactor . | . . . . . . . . . . . . . . . Propulsion 26 | 2 2 2 5 . . . 4 . . 4 1 2 1 3 Treads 24 | 2 . 2 5 . . . 4 . . 4 1 2 1 3 Leg 2 | . 2 . . . . . . . . . . . . . Wheel . | . . . . . . . . . . . . . . . Hover . | . . . . . . . . . . . . . . . Flight . | . . . . . . . . . . . . . . . Utility 35 | 2 3 . 3 1 4 . 4 3 6 3 4 2 . . Device 21 | 1 1 . 1 1 2 . 4 3 3 2 2 1 . . Storage 6 | 1 1 . 1 . 2 . . . 1 . . . . . Processor 2 | . 1 . . . . . . . . . 1 . . . Hackware 5 | . . . 1 . . . . . 2 1 1 . . . Protection 1 | . . . . . . . . . . . . 1 . . Artifact . | . . . . . . . . . . . . . . . Weapon 32 | 1 5 1 5 . . . 2 4 1 1 7 2 1 2 Energy Gun 7 | . 3 1 1 . . . 1 1 . . . . . . Energy Cannon 4 | . . . . . . . 1 1 . . 1 1 . . Ballistic Gun 8 | 1 1 . 2 . . . . . . 1 1 . . 2 Ballistic Cannon . | . . . . . . . . . . . . . . . Launcher 8 | . 1 . 2 . . . . 2 . . 1 1 1 . Special Weapon 3 | . . . . . . . . . 1 . 2 . . . Impact Weapon 1 | . . . . . . . . . . . 1 . . . Slashing Weapon 1 | . . . . . . . . . . . 1 . . . Piercing Weapon . | . . . . . . . . . . . . . . . Special Melee Weapon . | . . . . . . . . . . . . . . . Unidentified Prototypes 1 | . . . 1 . . . . . . . . . . . Parts Lost 34 | . 4 . 1 . . . . 1 1 6 5 1 2 13 Power 5 | . . . . . . . . . . 1 2 . . 2 Propulsion 15 | . 2 . . . . . . . . 3 1 . 2 7 Utility 9 | . . . 1 . . . . 1 1 . 2 1 . 3 Weapon 5 | . 2 . . . . . . . . 2 . . . 1 Highest Loss Streak 13 | . 3 . 1 . . . . 1 1 3 1 1 2 13 To Critical Strikes . | . . . . . . . . . . . . . . . Average Backups 16 | 1 6 14 17 19 18 19 18 19 18 17 18 18 18 17 Power 1 | . 1 1 1 1 1 2 1 1 1 . . . 1 1 Propulsion 5 | . . 6 7 7 6 7 8 6 6 4 2 3 3 2 Utility 3 | . 2 3 3 4 3 2 1 2 3 4 5 4 3 3 Weapon 6 | . 2 4 5 7 7 8 8 9 7 6 9 9 9 9 Tool/Special . | . . . . . . . . . . . . . . . Unused Backups 37 | . 2 2 8 . . . 7 4 3 4 1 2 . 4 Power 5 | . . . 1 . . . 1 2 . . . 1 . . Propulsion 13 | . . 2 5 . . . 5 1 . . . . . . Utility 5 | . 1 . . . . . 1 . . . . . . 3 Weapon 13 | . 1 . 2 . . . . 1 3 4 . 1 . 1 Tool/Special 1 | . . . . . . . . . . . 1 . . . Average Slot Usage (%) 98 | . 92 100 95 100 97 100 99 99 97 99 98 96 98 90 Engine 8 | . 14 14 11 11 11 11 9 8 . 2 6 7 7 7 Core 1 | . . . . . . . . . 7 4 . . . . Treads 28 | . 18 10 33 33 33 33 35 36 30 29 29 30 29 25 Leg 2 | . 7 17 . . . . . . . . . . . . Device 18 | . 12 14 8 11 13 22 26 26 22 23 18 15 22 22 Storage 9 | . 14 14 11 11 10 11 9 9 7 7 7 7 7 7 Hackware 6 | . . . 10 11 5 . . . 13 15 13 7 7 7 Energy Gun 6 | . 10 14 3 11 11 11 9 8 . 2 . . . . Energy Cannon 4 | . . . . . . . 7 8 14 8 5 7 6 5 Ballistic Gun 7 | . 12 13 18 10 11 11 1 . . 2 6 6 6 5 Peak Build Rating 59 | 6 8 10 25 26 47 28 37 42 50 53 50 59 50 56 Average Rating 31 | 4 6 8 18 25 25 28 35 38 48 50 47 47 49 46 On Entrance 30 | 1 6 8 10 25 25 28 28 37 40 49 50 48 45 50 Avg Prop Armor Cover (%) 8 | . . . . . . . . . . 8 . . . . Naked Turns . | . . . . . . . . . . . . . . . Heaviest Build 73 | 10 29 31 54 57 55 55 64 69 70 65 69 73 67 69 Greatest Support 104 | 40 40 40 60 60 60 60 80 80 80 84 90 90 104 104 Greatest Overweight (x) 4 | . 4 1 . . . . . . . 1 . . . . Average Overweight (x) . | . . . . . . . . . . . . . . . Largest Inventory Capacity 40 | 8 15 15 20 20 40 20 20 20 20 20 20 20 20 20 Average Capacity 18 | 7 9 15 18 20 19 20 20 20 20 20 20 20 20 20 Most Carried 20 | 2 14 15 20 20 20 20 20 20 20 20 20 20 20 20 Average Carried 17 | 1 6 14 17 19 18 20 19 19 19 18 19 19 18 17 Final Capacity 20 | 8 15 15 20 20 20 20 20 20 20 20 20 20 20 20 Final Carried 20 | 1 14 15 19 20 20 20 20 20 19 20 20 20 19 12 Class Distribution -------------------- 46% | Mutant 43% | Scavenger-Mutant 9% | Hacker-Mutant Dominant Class ---------------- Mutant | -10/Materials Scavenger-Mutant | -10/Mines Scavenger-Mutant | -9/Materials Scavenger-Mutant | -9/Mines Scavenger-Mutant | -9/Exiles Scavenger-Mutant | -8/Mines Mutant | -8/Materials Mutant | -8/Garrison Mutant | -7/Factory Hacker-Mutant | -7/Garrison Mutant | -7/Factory Scavenger-Mutant | -7/Lower Caves Scavenger-Mutant | -7/Lower Caves Scavenger-Mutant | -7/Data Miner Resources | -11 -10 -10 -9 -9 -9 -8 -8 -8 -7 -7 -7 -7 -7 -7 ----------- Run | Yrd Mat Min Mat Min Exi Min Mat Gar Fac Gar Fac Low Low Dat Matter Collected 3138 | 183 313 210 506 177 56 6 108 305 107 346 446 223 152 . Remotely . | . . . . . . . . . . . . . . . Salvage Created 5676 | 64 551 285 683 259 . . 294 929 593 766 646 195 335 76 Parts 331 | 10 42 17 47 22 . . 10 44 29 33 39 15 20 3 Haulers Intercepted 7 | . . . 3 . . . 4 . . . . . . . Recyclers Shooed 4 | . 1 . 1 . . . . . 1 . 1 . . . Parts Field Recycled . | . . . . . . . . . . . . . . . Retrieved Matter . | . . . . . . . . . . . . . . . Parts Self-Destructed 20 | . . . . . . . . . . . . 12 8 . Prevented 10 | . . . . . . . . . . . . . 10 . Parts Restored . | . . . . . . . . . . . . . . . Kills | -11 -10 -10 -9 -9 -9 -8 -8 -8 -7 -7 -7 -7 -7 -7 ------- Run | Yrd Mat Min Mat Min Exi Min Mat Gar Fac Gar Fac Low Low Dat Combat Hostiles Destroyed 133 | . 10 5 14 9 . . 2 29 12 19 15 8 9 1 Guns 43 | . 7 2 10 3 . . 1 8 . 7 5 . . . Cannons 36 | . . . . . . . 1 11 12 4 7 1 . . AOE 50 | . 3 3 4 6 . . . 9 . 7 3 7 8 . Classes Destroyed 15 | 1 6 1 2 . . . . 2 2 . . 1 . . Worker 12 | . 1 1 2 3 . . 1 . 2 . 2 . . . Builder 3 | . . . 3 . . . . . . . . . . . Tunneler 5 | 3 1 . . 1 . . . . . . . . . . Hauler 7 | . . . 3 . . . 4 . . . . . . . Recycler 4 | . 2 1 . . . . . . 1 . . . . . Operator 2 | . 1 . . . . . . . 1 . . . . . Watcher 2 | . 2 . . . . . . . . . . . . . Swarmer 48 | . 3 . 3 3 . . . 10 3 10 5 7 4 . Grunt 55 | . 7 3 10 6 . . 2 11 5 3 4 . 4 . Brawler 1 | . . . . . . . . 1 . . . . . . Duelist 2 | . . . . . . . . 1 . . 1 . . . Sentry 14 | . . 2 1 . . . . 6 1 2 2 . . . Hunter 2 | . . . . . . . . . 1 . . . 1 . Programmer 9 | . . . . . . . . . 2 4 3 . . . Behemoth 1 | . . . . . . . . . . . . 1 . . Enhanced Grunt 1 | . . . . . . . . . . . . . . 1 Decomposer 1 | . . . . . . . . . . . . 1 . . Savage 1 | . . . . . . . . 1 . . . . . . Best Kill Streak 7 | 2 3 3 7 5 . . 1 6 4 4 3 4 4 1 Combat Bots Only 6 | . 3 2 3 3 . . 1 6 3 4 3 4 4 1 Max Kills in Single Turn 4 | 1 2 2 3 4 . . 1 4 2 3 2 3 3 1 Gunslinging . | . . . . . . . . . . . . . . . Exploded 4 | . 2 1 2 3 . . . 4 . 3 2 3 3 . Melee . | . . . . . . . . . . . . . . . Uniques/NPCs Destroyed . | . . . . . . . . . . . . . . . Combat | -11 -10 -10 -9 -9 -9 -8 -8 -8 -7 -7 -7 -7 -7 -7 -------- Run | Yrd Mat Min Mat Min Exi Min Mat Gar Fac Gar Fac Low Low Dat Hostile Shots Fired 788 | . 66 13 64 30 . 4 8 65 89 195 143 29 23 59 Missed 244 | . 9 2 19 13 . 1 2 20 33 62 46 9 4 24 Hits 544 | . 57 11 45 17 . 3 6 45 56 133 97 20 19 35 Melee 5 | . . . . . . . . . . . 5 . . . Projectile 539 | . 57 11 45 17 . 3 6 45 56 133 92 20 19 35 AOE 1 | . . . . . . 1 . . . . . . . . Critical Strikes 14 | . 1 . . . . . 1 3 . 2 6 1 . . Part Disruptions 1 | . . . . . . . . . . 1 . . . . Damage Taken 8284 | . 710 182 525 287 . 104 71 549 754 1579 1221 366 296 1640 Core 1029 | . 178 33 39 37 . . . 28 105 181 126 26 12 264 Absorbed by Shields 220 | . . . . . . . 16 108 76 . 20 . . . Core Remaining (%) 72 | 100 . 15 . . . 81 . 94 . . . . . . Volleys Fired 523 | 26 101 10 51 21 . 2 25 89 49 71 50 9 10 9 Largest 2 | 1 2 2 2 2 . 2 2 2 2 2 2 2 2 2 Hottest 153 | 20 80 60 85 79 . 79 131 131 153 153 93 100 90 100 Shots Fired 832 | 26 125 15 96 38 . 4 49 137 85 123 91 11 18 14 Gun 467 | 26 122 10 90 34 . 4 24 48 . 51 43 2 6 7 Cannon 294 | . . . . . . . 24 77 80 60 41 3 6 3 Launcher 63 | . 3 5 6 4 . . 1 12 . 12 4 6 6 4 Special 8 | . . . . . . . . . 5 . 3 . . . Kinetic 297 | 26 87 5 76 17 . 2 . . . 26 43 2 6 7 Thermal 464 | . 35 5 14 17 . 2 48 125 80 85 41 3 6 3 Explosive 40 | . 3 5 6 4 . . 1 5 . 4 4 6 2 . Electromagnetic 23 | . . . . . . . . 7 . 8 . . 4 4 Robot Hit Streak 29 | 5 14 11 14 4 . 5 18 23 29 19 11 3 10 17 Robot Miss Streak 5 | 1 5 . 3 3 . 2 2 2 3 3 3 1 1 2 Penetration Max . | . . . . . . . . . . . . . . . Secondary Targets 4 | . . 1 1 1 . . . . . 1 . . . . Max Gunslinging Chain 1 | . . 1 1 1 . . . . . 1 . . . . Shots Hit Robots 508 | 18 83 11 60 20 . 2 31 75 57 64 59 5 12 11 Core Hits 264 | 6 36 12 26 22 . 1 9 41 17 35 28 9 13 9 Critical Kills 3 | . . . . . . . . . . 1 . . 1 1 Critical Parts Destroyed . | . . . . . . . . . . . . . . . Critical Strikes 14 | . . . 1 1 . . . 6 . 4 . . 1 1 Burn 11 | . . . 1 1 . . . 6 . 3 . . . . Meltdown 3 | . . . . . . . . . . 1 . . 1 1 Melee Attacks 9 | . . . . . . . . . . . 8 . . 1 Impact 4 | . . . . . . . . . . . 4 . . . Slashing 5 | . . . . . . . . . . . 4 . . 1 Piercing . | . . . . . . . . . . . . . . . Sneak Attacks 1 | . . . . . . . . . . . . . . 1 Combat Hostiles . | . . . . . . . . . . . . . . . Follow-up Attacks . | . . . . . . . . . . . . . . . Damage Inflicted 14174 | 157 968 524 1412 771 . 26 578 2022 1445 2298 1618 889 773 693 Guns 4616 | 157 753 103 914 318 . 26 287 715 . 698 547 . 50 48 Cannons 4532 | . . . . . . . 288 679 1445 787 827 193 107 206 Explosions 4946 | . 215 412 498 444 . . . 628 . 813 244 696 616 380 Melee 59 | . . . . . . . . . . . . . . 59 Ramming 21 | . . 9 . 9 . . 3 . . . . . . . Kinetic 2487 | 157 434 48 711 180 . 10 . . . 302 547 . 50 48 Thermal 7230 | . 319 55 449 138 . 16 575 1433 1445 1183 827 193 107 490 Explosive 3481 | . 162 412 252 444 . . . 512 . 462 244 696 297 . Electromagnetic 896 | . 53 . . . . . . 77 . 351 . . 319 96 Impact . | . . . . . . . . . . . . . . . Slashing 59 | . . . . . . . . . . . . . . 59 Piercing . | . . . . . . . . . . . . . . . Highest Corruption 3 | . . . . . . . . . 1 3 3 3 3 3 Average Corruption 2 | . . . . . . . . . 1 1 1 3 3 3 Corruption Purged 5 | . . . . . . . . . 1 4 . . . . Corruption Blocked . | . . . . . . . . . . . . . . . Effects 47 | . . . . . . . . . 3 3 14 11 12 4 Message Errors 15 | . . . . . . . . . 1 2 7 1 3 1 Matter Fused 7 | . . . . . . . . . 1 . 1 3 1 1 Heat Flow Errors 6 | . . . . . . . . . . . 1 4 1 . Energy Discharges 9 | . . . . . . . . . 1 . 2 1 4 1 Parts Fused 1 | . . . . . . . . . . . . 1 . . Data Loss (minor) 7 | . . . . . . . . . . . 2 1 3 1 Data Loss (major) 1 | . . . . . . . . . . 1 . . . . Weapon Failures 1 | . . . . . . . . . . . 1 . . . Overload Shots . | . . . . . . . . . . . . . . . Overflow Damage 498 | . . 29 134 16 . . . 82 78 53 50 55 1 . Projectiles 206 | . . . . . . . . 20 78 45 50 13 . . Explosions 292 | . . 29 134 16 . . . 62 . 8 . 42 1 . Melee . | . . . . . . . . . . . . . . . Knockbacks . | . . . . . . . . . . . . . . . Impact . | . . . . . . . . . . . . . . . Kinetic . | . . . . . . . . . . . . . . . Secondary . | . . . . . . . . . . . . . . . Self-Inflicted Damage 222 | . 19 22 . 54 . . . 15 . 60 . 52 . . Shots 8 | . 1 1 . 1 . . . 1 . 3 . 1 . . Rammed 4 | . . 1 1 1 . . 1 . . . . . . . Targets Rammed 5 | . . 1 1 2 . . 1 . . . . . . . Kicked . | . . . . . . . . . . . . . . . Crushed 1 | . . . . 1 . . . . . . . . . . Highest Temperature 363 | . 150 9 114 171 . . 87 99 41 363 239 238 182 . Average Temperature 47 | . 43 6 42 54 . . 66 32 11 86 26 94 105 . Received Heat Transfer 1915 | . 378 84 198 129 . 12 61 288 189 297 231 12 36 . Siege Activations . | . . . . . . . . . . . . . . . Martial Activations . | . . . . . . . . . . . . . . . Shielding Activations . | . . . . . . . . . . . . . . . Robots Disrupted . | . . . . . . . . . . . . . . . Combat Hostiles . | . . . . . . . . . . . . . . . Robots Corrupted 1 | . . . . . . . . . . 1 . . . . Combat Hostiles . | . . . . . . . . . . . . . . . Parts Fried 3 | . . . . . . . . . . . . . 3 . Impact Corruptions . | . . . . . . . . . . . . . . . Robots Melted 4 | . . . . . . . . 1 . 1 . . 1 1 Combat Hostiles 4 | . . . . . . . . 1 . 1 . . 1 1 Parts Melted 26 | . 2 1 1 1 . . 1 7 2 6 2 . 2 1 Heat Transferred 12757 | . 725 125 668 370 . 37 1147 3230 1998 2362 1073 154 148 720 Parts Sabotaged . | . . . . . . . . . . . . . . . Parts Stolen . | . . . . . . . . . . . . . . . Parts Stripped . | . . . . . . . . . . . . . . . Power Chain Reactions 2 | . 1 . . . . . . 1 . . . . . . Alert | -11 -10 -10 -9 -9 -9 -8 -8 -8 -7 -7 -7 -7 -7 -7 ------- Run | Yrd Mat Min Mat Min Exi Min Mat Gar Fac Gar Fac Low Low Dat Maximum Alert Level 3 | . . . . . . . . 3 2 3 1 . . . Low Security (%) 62 | 100 100 100 100 100 . 100 100 11 . . 53 . . . Level 1 14 | . . . . . . . . 17 49 17 46 . . . Level 2 15 | . . . . . . . . 37 50 59 . . . . Level 3 6 | . . . . . . . . 33 . 23 . . . . Level 4 . | . . . . . . . . . . . . . . . Level 5 . | . . . . . . . . . . . . . . . High Security . | . . . . . . . . . . . . . . . Max Security . | . . . . . . . . . . . . . . . Peak Influence 979 | 10 171 95 137 100 . 33 61 979 521 746 386 . . . Initial 513 | . . 34 17 15 . . . . 513 277 386 . . . Average 211 | . 60 15 55 41 . 3 11 523 399 566 216 . . . Influence Increases 4874 | 15 456 221 622 384 . 33 213 1129 380 519 497 195 210 . Destroy 0b10 Robot/C 2900 | . 200 120 340 260 . 20 100 600 240 380 300 160 180 . Destroy 0b10 Robot/NC 190 | 15 35 10 40 20 . . 30 . 20 5 10 5 . . Destroy Leader 520 | . 64 20 96 50 . 10 30 20 50 30 90 30 30 . Allied During Kill 64 | . . 10 13 19 . 3 9 10 . . . . . . Successful Hack 186 | . 28 12 37 5 . . 19 . 18 24 43 . . . Select Force Hacks 60 | . 60 . . . . . . . . . . . . . Disable Machine 105 | . 45 15 15 . . . . . 15 . 15 . . . Anti-Garrison Action 300 | . . . . . . . . 300 . . . . . . Destroy Structure 384 | . 24 34 51 30 . . 10 169 7 20 39 . . . Lose Combat Pursuer 165 | . . . 30 . . . 15 30 30 60 . . . . Influence Decreases 4874 | 15 366 266 628 413 10 33 213 150 962 180 1076 330 230 2 Entered New Map 1120 | . . 56 28 24 10 . . . 466 120 350 59 5 2 Time Decay 3078 | 15 326 210 434 389 . 33 193 . 486 . 526 261 205 . Lost Part 210 | . 40 . 10 . . . . 10 10 60 50 10 20 . Lost Ally 180 | . . . 20 . . . 20 140 . . . . . . Purge Threat 286 | . . . 136 . . . . . . . 150 . . . Squads Dispatched 15 | . 4 . 3 . . . 1 . 4 . 3 . . . Investigation 5 | . 3 . 2 . . . . . . . . . . . Extermination 4 | . . . . . . . . . 2 . 2 . . . Reinforcement 5 | . 1 . 1 . . . 1 . 1 . 1 . . . Assault 1 | . . . . . . . . . 1 . . . . . Garrison . | . . . . . . . . . . . . . . . Intercept . | . . . . . . . . . . . . . . . Searches Triggered . | . . . . . . . . . . . . . . . Construction Impeded 1 | . . . 1 . . . . . . . . . . . Haulers Reinforced . | . . . . . . . . . . . . . . . Active Scanning Responses . | . . . . . . . . . . . . . . . Cargo Convoy Interrupts . | . . . . . . . . . . . . . . . Stealth | -11 -10 -10 -9 -9 -9 -8 -8 -8 -7 -7 -7 -7 -7 -7 --------- Run | Yrd Mat Min Mat Min Exi Min Mat Gar Fac Gar Fac Low Low Dat Distress Signals 5 | . 1 2 1 . . . . . 1 . . . . . Communications Jammed 36 | . . . . . . . . . 31 . 5 . . . Distress Signals 35 | . . . . . . . . . 31 . 4 . . . Times Spotted 168 | . 21 8 19 12 . 1 6 23 20 20 17 8 9 4 Peak Tracking Total 4 | . 3 3 3 3 . 1 2 4 3 3 3 4 4 4 Tactical Retreats 11 | . . . 2 . . . 1 2 2 4 . . . . Traps | -11 -10 -10 -9 -9 -9 -8 -8 -8 -7 -7 -7 -7 -7 -7 ------- Run | Yrd Mat Min Mat Min Exi Min Mat Gar Fac Gar Fac Low Low Dat Traps Triggered 5 | . . . 1 . . . . 1 . 2 1 . . . Indirectly 2 | . . . . . . . . . . 2 . . . . Trap Hack Attempts . | . . . . . . . . . . . . . . . Triggered . | . . . . . . . . . . . . . . . Disarmed . | . . . . . . . . . . . . . . . Reprogrammed . | . . . . . . . . . . . . . . . Reused . | . . . . . . . . . . . . . . . Traps Extracted . | . . . . . . . . . . . . . . . Installed . | . . . . . . . . . . . . . . . Triggered . | . . . . . . . . . . . . . . . Machines | -11 -10 -10 -9 -9 -9 -8 -8 -8 -7 -7 -7 -7 -7 -7 ---------- Run | Yrd Mat Min Mat Min Exi Min Mat Gar Fac Gar Fac Low Low Dat Machines Disabled 10 | . 3 1 1 . . . . 3 1 . 1 . . . Max in Single Turn 2 | . 2 1 1 . . . . 1 1 . 1 . . . Garrison Access 1 | . . . . . . . . . . . 1 . . . Garrison Relay 2 | . . . . . . . . 2 . . . . . . Machines Repaired . | . . . . . . . . . . . . . . . Machines Dismantled . | . . . . . . . . . . . . . . . Machines Sabotaged . | . . . . . . . . . . . . . . . Overloaded Fab Kills . | . . . . . . . . . . . . . . . Hacking | -11 -10 -10 -9 -9 -9 -8 -8 -8 -7 -7 -7 -7 -7 -7 --------- Run | Yrd Mat Min Mat Min Exi Min Mat Gar Fac Gar Fac Low Low Dat Machines Accessed 38 | . 8 1 9 1 2 . 4 2 3 1 4 . . 3 Terminals 24 | . 6 1 8 1 . . 2 2 . 1 3 . . . Fabricators . | . . . . . . . . . . . . . . . Repair Stations 1 | . . . . . . . . . 1 . . . . . Recycling Units 2 | . 2 . . . . . . . . . . . . . Scanalyzers 3 | . . . 1 . . . 1 . 1 . . . . . Garrison Access 3 | . . . . . . . 1 . 1 . 1 . . . Total Hacks 120 | . 24 4 33 3 2 . 12 4 6 4 9 . . 19 Successful 81 | . 14 2 24 2 2 . 6 1 4 2 5 . . 19 Failed 37 | . 9 2 8 1 . . 6 3 2 2 4 . . . Catastrophic 2 | . . . . . . . . 1 . 1 . . . . Database Lockouts 2 | . 1 . 1 . . . . . . . . . . . Manual 63 | . 22 4 17 3 1 . 7 2 . 2 5 . . . Terminals 84 | . 22 4 30 3 . . 9 4 . 4 8 . . . Fabricators . | . . . . . . . . . . . . . . . Repair Stations 3 | . . . . . . . . . 3 . . . . . Recycling Units 2 | . 2 . . . . . . . . . . . . . Scanalyzers 7 | . . . 3 . . . 2 . 2 . . . . . Garrison Access 3 | . . . . . . . 1 . 1 . 1 . . . Terminal Hacks 45 | . 4 2 12 2 2 . . 1 . 1 2 . . 19 Record 3 | . . . . . 1 . . . . . . . . 2 Part Schematic 11 | . 1 . . . . . . . . . . . . 10 Robot Schematic 4 | . . . . . . . . . . . . . . 4 Prototype ID Bank 10 | . 1 2 2 2 . . . . . . . . . 3 Branch Access Points 3 | . 1 . 1 . . . . . . . 1 . . . Emergency Access Points 2 | . . . . . . . . 1 . . 1 . . . Terminal Index 1 | . . . 1 . . . . . . . . . . . Alert Level 1 | . . . 1 . . . . . . . . . . . Unreport Threat 1 | . . . 1 . . . . . . . . . . . Locate Traps 1 | . . . 1 . . . . . . . . . . . Security Status 1 | . . . 1 . . . . . . . . . . . Hauler Manifests 2 | . 1 . 1 . . . . . . . . . . . Registered Components 1 | . . . 1 . . . . . . . . . . . Registered Prototypes 1 | . . . 1 . . . . . . . . . . . Zone Layout 1 | . . . 1 . . . . . . . . . . . Security Stations 1 | . . . . . . . . . . 1 . . . . Proto ID Catalog 1 | . . . . . 1 . . . . . . . . . Fabricator Hacks . | . . . . . . . . . . . . . . . Repair Station Hacks 1 | . . . . . . . . . 1 . . . . . Scan Component 1 | . . . . . . . . . 1 . . . . . Recycling Unit Hacks . | . . . . . . . . . . . . . . . Scanalyzer 5 | . . . 2 . . . 1 . 2 . . . . . Retrieve Study 5 | . . . 2 . . . 1 . 2 . . . . . Garrison Access Hacks 3 | . . . . . . . 1 . 1 . 1 . . . Unlock Access 2 | . . . . . . . 1 . 1 . . . . . Seal Access 1 | . . . . . . . . . . . 1 . . . Unauthorized Hacks 27 | . 10 . 10 . . . 4 . . 1 2 . . . Terminals 25 | . 8 . 10 . . . 4 . . 1 2 . . . Assimilate 1 | . . . . . . . 1 . . . . . . . Botnet 11 | . 3 . 3 . . . 2 . . 1 2 . . . Operators 2 | . . . 2 . . . . . . . . . . . Skim 11 | . 5 . 5 . . . 1 . . . . . . . Fabricators . | . . . . . . . . . . . . . . . Repair Stations . | . . . . . . . . . . . . . . . Recycling Units 2 | . 2 . . . . . . . . . . . . . Tunnel 2 | . 2 . . . . . . . . . . . . . Scanalyzers . | . . . . . . . . . . . . . . . Garrison Access . | . . . . . . . . . . . . . . . Data Cores Recovered . | . . . . . . . . . . . . . . . Used . | . . . . . . . . . . . . . . . Hacking Detections 29 | . 6 1 9 1 . . 3 2 3 1 3 . . . Full Trace Events . | . . . . . . . . . . . . . . . Feedback Events . | . . . . . . . . . . . . . . . Feedback Blocked . | . . . . . . . . . . . . . . . Robot Schematics Acquired 4 | . . . . . . . . . . . . . . 4 Robots Built . | . . . . . . . . . . . . . . . Authchips . | . . . . . . . . . . . . . . . Time . | . . . . . . . . . . . . . . . Total Robot Build Rating . | . . . . . . . . . . . . . . . Part Schematics Acquired 11 | . 1 . . . . . . . . . . . . 10 Parts Built . | . . . . . . . . . . . . . . . Authchips . | . . . . . . . . . . . . . . . Time . | . . . . . . . . . . . . . . . Total Part Build Rating . | . . . . . . . . . . . . . . . Part Studies Acquired 5 | . . . 2 . . . 1 . 2 . . . . . Parts Repaired . | . . . . . . . . . . . . . . . Time . | . . . . . . . . . . . . . . . Parts Recycled . | . . . . . . . . . . . . . . . Recycled Matter . | . . . . . . . . . . . . . . . Retrieved Matter . | . . . . . . . . . . . . . . . Retrieved Components . | . . . . . . . . . . . . . . . Parts Scanalyzed . | . . . . . . . . . . . . . . . Part Schematics Acquired . | . . . . . . . . . . . . . . . Parts Damaged . | . . . . . . . . . . . . . . . Bothacking | -11 -10 -10 -9 -9 -9 -8 -8 -8 -7 -7 -7 -7 -7 -7 ------------ Run | Yrd Mat Min Mat Min Exi Min Mat Gar Fac Gar Fac Low Low Dat Used RIF Installer 2 | . . . . . . . . 1 . 1 . . . . Program Shield 1 | . . . . . . . . . . 1 . . . . Robots Hacked 5 | . . . . . . . . . 4 . 1 . . . Non-combat 1 | . . . . . . . . . . . 1 . . . Combat 4 | . . . . . . . . . 4 . . . . . Robot Hacks Applied 8 | . . . . . . . . . 5 . 3 . . . purge_threat 1 | . . . . . . . . . . . 1 . . . block_reporting 1 | . . . . . . . . . . . 1 . . . summon_haulers 1 | . . . . . . . . . . . 1 . . . scatter_targeting 1 | . . . . . . . . . 1 . . . . . amplify_resonance 4 | . . . . . . . . . 4 . . . . . Relay Couplers Released 9 | . . . . . . . . 9 . . . . . . Machine Destruction 9 | . . . . . . . . 9 . . . . . . Attached 2 | . . . . . . . . . 1 . 1 . . . Fabnet Peak Effective % . | . . . . . . . . . . . . . . . Robots Rewired 6 | . . . . . . . . 6 . . . . . . Allies Hacked . | . . . . . . . . . . . . . . . Hacks Repelled . | . . . . . . . . . . . . . . . Allies | -11 -10 -10 -9 -9 -9 -8 -8 -8 -7 -7 -7 -7 -7 -7 -------- Run | Yrd Mat Min Mat Min Exi Min Mat Gar Fac Gar Fac Low Low Dat Total Allies 14 | . . 3 . 3 . . . 8 . . . . . . Largest Group 6 | . . 3 2 3 3 2 2 6 . . . . . . Highest-Rated Group 72 | . . 72 41 40 39 23 23 45 . . . . . . Highest-Rated Ally 31 | . . 31 31 16 16 15 15 25 . . . . . . Total Orders 2 | . . . . . . . . 2 . . . . . . ROAM 2 | . . . . . . . . 2 . . . . . . Ally Attacks 120 | . . 10 13 9 . 6 33 49 . . . . . . Total Damage 1277 | . . 145 148 130 . 55 271 528 . . . . . . Kills 15 | . . 2 3 4 . 1 4 1 . . . . . . Allies Corrupted . | . . . . . . . . . . . . . . . Allies Melted . | . . . . . . . . . . . . . . . Intel | -11 -10 -10 -9 -9 -9 -8 -8 -8 -7 -7 -7 -7 -7 -7 ------- Run | Yrd Mat Min Mat Min Exi Min Mat Gar Fac Gar Fac Low Low Dat Active Infowar (turns) 9286 | 21 693 1696 1038 1159 298 . . . 743 1150 1449 331 594 114 Structural 691 | . . . 1 690 . . . . . . . . . . Seismic 4214 | 21 693 1696 1037 469 298 . . . . . . . . . Jamming 4381 | . . . . . . . . . 743 1150 1449 331 594 114 Robot Analysis Total 154 | . . . . . . . . . . . . . . 154 Derelict Logs Recovered 3 | . . 1 . . . . . . . . . 1 1 . Drone Launches . | . . . . . . . . . . . . . . . Drone Recoveries . | . . . . . . . . . . . . . . . Exploration | -11 -10 -10 -9 -9 -9 -8 -8 -8 -7 -7 -7 -7 -7 -7 ------------- Run | Yrd Mat Min Mat Min Exi Min Mat Gar Fac Gar Fac Low Low Dat Turns Passed 14646 | 130 1274 1710 1390 1159 561 349 883 1801 1277 1150 1471 663 668 160 Spaces Moved 6940 | 48 560 620 650 632 315 202 413 837 603 483 739 388 388 62 Core 4 | 3 1 . . . . . . . . . . . . . Treads 6537 | 45 388 392 650 632 315 202 413 837 603 483 739 388 388 62 Legs 399 | . 171 228 . . . . . . . . . . . . Wheels . | . . . . . . . . . . . . . . . Hover . | . . . . . . . . . . . . . . . Flight . | . . . . . . . . . . . . . . . Fastest Speed 50 | 50 120 160 160 170 170 170 170 170 170 157 157 158 158 160 Average Speed 167 | 153 167 171 164 170 170 170 170 170 170 182 157 158 159 160 Slowest Speed 250 | 160 250 240 170 170 170 170 170 170 170 250 161 161 160 160 Overloaded Moves . | . . . . . . . . . . . . . . . Propulsion Burnouts . | . . . . . . . . . . . . . . . Robots Hopped . | . . . . . . . . . . . . . . . Potential Cave-ins . | . . . . . . . . . . . . . . . Cave-ins Triggered . | . . . . . . . . . . . . . . . Exploration Rate (%) 57 | 3 77 96 52 99 68 48 32 90 17 58 23 57 63 76 Regions Visited 14 Branch Regions 7 Pre-discovered Areas 35 | . 2 1 2 1 1 . . . . . . . 1 27 Known Exits Taken 8 | . 1 1 1 . 1 1 1 . 1 . 1 . . . Unknown Exits Taken 4 | 1 . . . 1 . . . . . . . 1 1 . Scrap Searched 10 | . . 2 . 2 . 1 . . . . . 3 2 . Spaces Dug 109 | . 5 . 29 . . . 9 . 1 . 8 22 35 . Terrain Destroyed 376 | . 23 38 50 38 . . 9 52 7 . 34 77 36 12 Melee 8 | . . . . . . . . . . . 8 . . . Projectile 11 | . . . . . . . . 1 7 . 2 . 1 . AOE 357 | . 23 38 50 38 . . 9 51 . . 24 77 35 12 Terrain Rammed . | . . . . . . . . . . . . . . . Walls Destroyed . | . . . . . . . . . . . . . . . Machines Disabled . | . . . . . . . . . . . . . . . Actions | -11 -10 -10 -9 -9 -9 -8 -8 -8 -7 -7 -7 -7 -7 -7 --------- Run | Yrd Mat Min Mat Min Exi Min Mat Gar Fac Gar Fac Low Low Dat Total 9162 | 81 785 1253 879 673 344 204 557 1084 774 642 943 423 417 103 Wait 1227 | . 90 602 110 11 . 1 75 63 102 38 107 4 9 15 Move 6927 | 47 559 619 649 631 314 201 412 836 603 482 738 387 387 62 Hop . | . . . . . . . . . . . . . . . Pick Up 128 | 1 17 4 23 1 18 . 14 8 6 18 10 6 2 . Fast Attach 21 | 6 4 . 2 . 2 . 1 1 1 . 4 . . . Attach 38 | . 1 . 3 . 2 . 2 . 2 8 4 3 3 10 Detach 7 | . . . 1 . 1 . . . . . 1 1 . 3 Swap 118 | . 9 11 18 7 1 . 9 18 5 10 14 8 6 2 Drop 97 | 1 4 6 21 . 6 . 18 13 6 9 7 5 . 1 Fire 523 | 26 101 10 51 21 . 2 25 89 49 71 50 9 10 9 Melee 9 | . . . . . . . . . . . 8 . . 1 Ram . | . . . . . . . . . . . . . . . Kick . | . . . . . . . . . . . . . . . Crush 5 | . . 1 1 2 . . 1 . . . . . . . Escape Stasis 6 | . . . . . . . . . . 6 . . . . Rewire 56 | . . . . . . . . 56 . . . . . . Trap . | . . . . . . . . . . . . . . . Miscellaneous . | . . . . . . . . . . . . . . . Route ------- -11/Scrapyard -10/Materials (discovered 5 exits: *Mat x3 / *Min x2) -10/Mines (discovered 2 exits: *Mat x2) -9/Materials (discovered 4 exits: *Mat x3 / *Min) -9/Mines (discovered 3 exits: *Mat x2 / *Exi) -9/Exiles -8/Mines -8/Materials (discovered 2 exits: *Fac / Gar) -8/Garrison (discovered 3 exits: *Fac x3) -7/Factory (discovered 2 exits: *Fac / Gar) -7/Garrison (discovered 2 exits: *Fac x2) -7/Factory (discovered 3 exits: *Fac / *Low x2) -7/Lower Caves -7/Lower Caves (discovered 2 exits: *Fac / *Dat) -7/Data Miner (discovered 1 exit: [*Pro]) History --------- Turn | Location | Event 19 | -11/Scrapyard | Discovered new exit (range 15) 131 | -11/Scrapyard | Entered Materials 206 | -10/Materials | Discovered new exit (range 6) 303 | -10/Materials | Build established: Mutant 347 | -10/Materials | Discovered new exit (range 15) 567 | -10/Materials | Discovered new exit (range 12) 831 | -10/Materials | Derelicts attacked the area 874 | -10/Materials | Core integrity fell below 50% 888 | -10/Materials | Lost 3 parts (1n2w) 918 | -10/Materials | Discovered new exit (range 7) 1018 | -10/Materials | Learned location of 1 exit from Recycling 1144 | -10/Materials | Learned 2 Mines zone layouts 1190 | -10/Materials | Identified exit to Materials 1193 | -10/Materials | Learned Storage emergency access door positions 1232 | -10/Materials | Learned location of 1 exit from Storage 1289 | -10/Materials | Identified exit to Mines 1305 | -10/Materials | Loaded intel: 8 terminal locations 1348 | -10/Materials | Central database locked down 1369 | -10/Materials | Build established: Scavenger-Mutant 1405 | -10/Materials | Entered Mines 1456 | -10/Mines | Core integrity fell below 20% 1458 | -10/Mines | Escorted by a lone wolf Derelict 1472 | -10/Mines | Met a Derelict bent on vengeance 1478 | -10/Mines | Learned location of Storage (-8) 1514 | -10/Mines | Assembled infested the area 2421 | -10/Mines | Discovered exit to Materials (range 10) 2633 | -10/Mines | Learned Materials garrison access intel 3115 | -10/Mines | Entered Materials 3115 | -9/Materials | Accompanied by 2 allies 3115 | -9/Materials | Evolved 2 slots: Propulsion x1, Utility x1 3116 | -9/Materials | Identified exit to Mines 3332 | -9/Materials | Central database locked down 3942 | -9/Materials | Discovered new exit (range 14) 4082 | -9/Materials | Learned Storage interactive machine intel 4149 | -9/Materials | Learned location of Mines (-9) 4287 | -9/Materials | Identified exit to Materials 4312 | -9/Materials | Learned location of 1 exit from Storage 4349 | -9/Materials | Learned location of 1 exit from Recycling 4394 | -9/Materials | Learned 4 Recycling zone layouts 4446 | -9/Materials | Build established: Mutant 4505 | -9/Materials | Entered Mines 4805 | -9/Mines | Build established: Scavenger-Mutant 5096 | -9/Mines | Discovered exit to Materials (range 10) 5116 | -9/Mines | Assisted by bots powering up and referring to "LRC-V3" 5506 | -9/Mines | Deemed a non-threat by the Exiles lab entrance 5565 | -9/Mines | Discovered exit to Materials (range 11) 5657 | -9/Mines | Discovered new exit (range 5) 5664 | -9/Mines | Entered Exiles 5664 | -9/Exiles | Accompanied by 3 allies 5665 | -9/Exiles | Identified exit to Mines 5705 | -9/Exiles | Met 8R-AWN 5734 | -9/Exiles | Met EX-HEX 5821 | -9/Exiles | Met EX-DEC 5860 | -9/Exiles | Learned location of Zion (-6) 5887 | -9/Exiles | Met EX-BIN 5911 | -9/Exiles | Aligned with FarCom system 5912 | -9/Exiles | Given EX-Vault access code 5952 | -9/Exiles | Opened EX-Vault 5963 | -9/Exiles | Found Lightpack 2.0 6032 | -9/Exiles | Found YOLO Cannon 6065 | -9/Exiles | Warned to stay clear of 0b10 Research branches 6225 | -9/Exiles | Left Exiles lab with YOLO Cannon 6225 | -9/Exiles | Entered Mines 6225 | -8/Mines | Accompanied by 3 allies 6484 | -8/Mines | Discovered exit to Materials (range 16) 6574 | -8/Mines | Entered Materials 6574 | -8/Materials | Accompanied by 2 allies 6574 | -8/Materials | Evolved 2 slots: Propulsion x1, Utility x1 6575 | -8/Materials | Loaded intel: 1 garrison access location 6821 | -8/Materials | Discovered new exit (range 3) 6966 | -8/Materials | Build established: Mutant 7452 | -8/Materials | Identified exit to Garrison 7457 | -8/Materials | Entered Garrison 7457 | -8/Garrison | Accompanied by 1 ally 7637 | -8/Garrison | Triggered checkpoint 7666 | -8/Garrison | Garrison Relay disabled 7781 | -8/Garrison | Triggered checkpoint 7913 | -8/Garrison | Discovered new exit (range 10) 7917 | -8/Garrison | Triggered checkpoint 7923 | -8/Garrison | Rescued a captive Derelict 7923 | -8/Garrison | Rescued a captive Derelict 7980 | -8/Garrison | Garrison Relay disabled 8097 | -8/Garrison | Triggered checkpoint 8175 | -8/Garrison | Triggered checkpoint 8323 | -8/Garrison | Discovered new exit (range 10) 8776 | -8/Garrison | Discovered new exit (range 3) 8887 | -8/Garrison | Triggered checkpoint 8993 | -8/Garrison | Triggered checkpoint 9030 | -8/Garrison | Installed Relay Interface Framework 9258 | -8/Garrison | Entered Factory 9258 | -7/Factory | Evolved 2 slots: Utility x2 10192 | -7/Factory | Discovered new exit (range 8) 10458 | -7/Factory | First assault squad dispatched 10533 | -7/Factory | Identified exit to Garrison 10535 | -7/Factory | Entered Garrison 10545 | -7/Garrison | Triggered checkpoint 10649 | -7/Garrison | Triggered checkpoint 10701 | -7/Garrison | Learned Factory security intel 10804 | -7/Garrison | Discovered new exit (range 15) 10846 | -7/Garrison | Build established: Hacker-Mutant 10850 | -7/Garrison | Expanded RIF knowledge: Program Shield 11199 | -7/Garrison | Triggered checkpoint 11236 | -7/Garrison | Lost 3 parts (1p2w) 11348 | -7/Garrison | Discovered new exit (range 8) 11400 | -7/Garrison | Triggered checkpoint 11561 | -7/Garrison | Lost 3 parts (3n) 11685 | -7/Garrison | Entered Factory 12175 | -7/Factory | Build established: Mutant 12270 | -7/Factory | Discovered new exit (range 16) 12302 | -7/Factory | Identified exit to Factory 12380 | -7/Factory | Identified exit to Lower Caves 12799 | -7/Factory | Core integrity fell below 50% 13156 | -7/Factory | Entered Lower Caves 13216 | -7/Lower Caves | Found DCF Scrap (14 items) 13479 | -7/Lower Caves | Spotted B-75 Beast 13493 | -7/Lower Caves | Destroyed B-75 Beast 13519 | -7/Lower Caves | Build established: Scavenger-Mutant 13605 | -7/Lower Caves | Discovered new exit (range 8) 13617 | -7/Lower Caves | Learned Factory trap positions 13819 | -7/Lower Caves | Entered another Lower Caves area 13877 | -7/Lower Caves | Encountered a Warlord checkpoint 13905 | -7/Lower Caves | Discovered exit to Factory (range 10) 14340 | -7/Lower Caves | Discovered new exit (range 12) 14487 | -7/Lower Caves | Entered Data Miner 14487 | -7/Data Miner | Discovered new exit (range 6) 14518 | -7/Data Miner | Met Data Miner 14545 | -7/Data Miner | Learned location of Section 7 (-3) 14545 | -7/Data Miner | Acquired the access code to Warlord's prototype stash 14567 | -7/Data Miner | Received God Mode back door access code from Data Miner 14586 | -7/Data Miner | Interfaced with the Data Conduit 14639 | -7/Data Miner | Core integrity fell below 20% 14647 | -7/Data Miner | Destroyed by Enhanced Grunt with Neutron Cannon Last Messages --------------- Connection remotely terminated. 14592_ Med. Treads destroyed. 14602_ Dropped Adv. EMP Blaster. 14603_ Lgt. Treads destroyed. 14607_ Med. Treads destroyed. 14607_ Imp. Light Armor Plating destroyed. 14607_ Enhanced Grunt suffers critical hit (Meltdown). 14607_ Antimatter Reactor melted. 14610_ WEH7BV/ 14610_ Imp. Deuterium Engine destroyed. 14611_ Med. Treads destroyed. 14614_ Lgt. Nuclear Core destroyed. 14630_ Lgt. Treads destroyed. 14630_ Spk. Treads destroyed. 14632_ Imp. Heat Sink destroyed. 14635_ Lgt. Treads destroyed. 14636_ Imp. Heat Sink destroyed. 14636_ Enh. Autogun destroyed. 14638_ System corrupted: Component data lost. Map ----- +----------------------------------------------------+ | | | | | | | | | | | | | | | | | | | | | | | | | ???????????????????????????????????? | | ???????????????????????????????????? | | ???????????????????????????????????? | | ???????????????????????????????????? | | ??????????????????????##???????????? | | ????????############# ???????????# | | ?????"""""""""""" ; #????????## | | ????""""""""" ########## | | ????""""""""" | | ????"""""" ! | | ???""""" g | | ??#"""""" g | | ???""" g | | ????"""""" @ """"""""" | | ????""""" ########## | | ????"""" """ "###????????? | | ?????""""" "#####??????????? | | ????######;# ## "#??????????????? | | ?????????###"### "#??????????????? | | ???????????#"### "#??????????????? | | ???????????#"## "#??????????????? | | ???????????#"## "#??????????????? | | ?????????????# "#??????????????? | | ?????????????### "#??????????????? | | ???????????????# "##?????????????? | | ??????????????## ""#?????????????? | | ?????????????## ""#?????????????? | | ??????????##"#"X ""#?????????????? | | ??????????""""" "####??????????? | | ??????????""""" X"""""??????????? | | ??????????##"#"X "##"#??????????? | | ???????????#"## X""""#??????????? | | ??????????????## "##"#??????????? | | ???????????????#######?????????????? | | ???????????????????????????????????? | | ???????????????????????????????????? | | ???????????????????????????????????? | | ???????????????????????????????????? | +----------------------------------------------------+ Best States ------------- Heat Dissipation 67 Energy Generation 20 Energy Capacity 310 Matter Stores 300 Matter Capacity 300 Sight Range 16 Terrain Scan Density 10 Jamming Range 12 Armor Coverage 150 Weapon Cycling 15 Evasion (%) 55 Recoil Reduction 4 Offensive Hacking 12 Defensive Hacking 10 Relay Coupler Types 1 Relay Coupler Value 43 Item Schematics ----------------- Hcp. Storage Unit | -10/Materials | Hacked Combat Drone Bay | -7/Data Miner | Free Lgt. Regenerative Plating | -7/Data Miner | Free Cld. Cesium-ion Thruster | -7/Data Miner | Free Exp. Targeting Computer | -7/Data Miner | Free Com. Ion Cannon | -7/Data Miner | Free Arm. Medium Treads | -7/Data Miner | Free Lyr. Heavy Armor Plating | -7/Data Miner | Free Tesla Rifle | -7/Data Miner | Free Adv. Cooling System | -7/Data Miner | Free Field Propulsion Array | -7/Data Miner | Free Robot Schematics ------------------ R-10 Processor | -7/Data Miner | Free W-25 Informer | -7/Data Miner | Free Y-54 Guardian | -7/Data Miner | Free B-48 Gladiator | -7/Data Miner | Free Fabricated ------------ Nothing Repaired ---------- Nothing Studied --------- Hvy. Assault Rifle | -9/Materials | Hacked Assault Rifle | -9/Materials | Hacked Pulse Rifle | -8/Materials | Hacked Phase Cannon | -7/Factory | Hacked Fission Core | -7/Factory | Hacked Alien Tech Used ----------------- None Achievements -------------- None Challenges ------------ None Game ------ Seed AutogunLaunchClaw Manual? 0 Play Time 01:13:27 Cumulative 337.3 hours Start 2026.01.31 @ 20:22:53 End 2026.02.01 @ 00:10:04 Sessions 1 Manual Loads 0 Difficulty Rogue Special Mode None Game No. 220 Rogue 220 Adventurer 0 Explorer 0 Win Type - Total 13 Types 9/1/1/1/0/0/0/1/0/0 Lore% 92 Gallery% 81 Achievement% 67 Wizard Run 0 Options --------- Layout 1 ASCII 0 Keyboard 0 Movement Mouse Keybinds 0 Fullscreen 2 Font 32/SmallcapsGlow Map View 50x35 Zoom Use 0% Tactical HUD 1 Map Filters NONE Filters NONE Steam 1 RUN: deee4688-9ad1-4bb0-a137-f12bab36779c